bitfinex/quotes_BTCUSD_20240911
["timestamp","ask_amount","ask_price","bid_price","bid_amount"]
[1726060221533,0.27396285,56979.0,56975.0,0.08948854]
[1726060221793,0.27396285,56979.0,56974.0,0.0017004]
[1726060222045,0.27396285,56975.0,56974.0,0.0017004]
[1726060222261,0.4534994,56975.0,56974.0,0.0017004]
[1726060222902,0.44990303,56975.0,56974.0,0.0017004]
[1726060223125,0.27396285,56975.0,56974.0,0.0017004]
[1726060224003,0.45790303,56975.0,56974.0,0.0027004]
[1726060224662,0.46390303,56975.0,56974.0,0.0037004]
[1726060225322,0.54580303,56975.0,56974.0,0.0037004]
[1726060225562,0.28796285,56975.0,56974.0,0.0037004]
[1726060226346,0.28796285,56975.0,56974.0,0.41212912]
[1726060226347,0.014,56975.0,56974.0,0.41212912]
[1726060226569,0.014,56975.0,56974.0,0.58934203]
[1726060226810,0.014,56975.0,56974.0,2.08934203]
[1726060227059,0.014,56975.0,56974.0,0.58934203]
[1726060227291,0.008,56975.0,56974.0,0.58834203]
[1726060227525,0.52782518,56994.0,56990.0,0.0645]
[1726060227762,0.19899797,56992.0,56990.0,0.0645]
[1726060227986,0.19899797,56992.0,56986.0,0.03]
[1726060227987,0.17675918,56991.0,56986.0,0.03]
[1726060228230,0.000819,56991.0,56988.0,0.03]
[1726060228483,0.19899797,56989.0,56988.0,0.03]
[1726060229169,0.19899797,56989.0,56984.0,0.06]
[1726060229402,0.19899797,56989.0,56988.0,0.03]
[1726060229914,0.19899797,56989.0,56984.0,0.03]
[1726060230159,0.19899797,56989.0,56984.0,0.08948854]
[1726060230397,0.27365097,56988.0,56984.0,0.08948854]
[1726060230857,0.27365097,56988.0,56987.0,0.03]
[1726060231326,0.27365097,56988.0,56984.0,0.06]
[1726060231580,0.27365097,56988.0,56984.0,0.08948854]
[1726060231836,0.27672352,56987.0,56976.0,0.0626]
[1726060232188,0.27365097,56977.0,56974.0,0.0017004]
[1726060232421,0.27365097,56975.0,56974.0,0.0017004]
[1726060232657,0.44959115,56975.0,56974.0,0.0017004]
[1726060232886,0.27365097,56975.0,56974.0,0.0017004]
[1726060233354,0.28979545,56975.0,56974.0,0.0017004]
[1726060233573,0.01614448,56975.0,56974.0,0.0317004]
[1726060233783,0.27365097,56980.0,56974.0,0.0317004]
[1726060234001,0.30374022,56975.0,56974.0,0.0327004]
[1726060234229,0.28765097,56975.0,56974.0,0.0327004]
[1726060234461,0.30374022,56975.0,56974.0,0.0027004]
[1726060234677,0.4916804,56975.0,56974.0,0.0037004]
[1726060234876,0.4776804,56975.0,56974.0,0.0027004]
[1726060235982,0.5580804,56975.0,56974.0,0.0027004]
[1726060236855,0.5720804,56975.0,56974.0,0.0037004]
[1726060237529,0.04208925,56975.0,56974.0,0.0037004]
[1726060237748,0.04208925,56975.0,56974.0,0.33472912]
[1726060237968,0.04208925,56975.0,56974.0,0.54700203]
[1726060237969,0.026,56975.0,56974.0,0.54700203]
[1726060238181,0.026,56975.0,56974.0,0.54690203]
[1726060238387,0.026,56975.0,56974.0,0.54680203]
[1726060238605,0.000819,56991.0,56990.0,0.03]
[1726060238820,0.000819,56991.0,56990.0,0.22998854]
[1726060239028,0.000819,56991.0,56990.0,0.22988854]
[1726060239257,0.000819,56991.0,56987.0,0.0297]
[1726060239476,0.27365097,56985.0,56984.0,0.029]
[1726060240007,0.27365097,56990.0,56985.0,0.0288]
[1726060240245,0.27365097,56990.0,56976.0,0.1]
[1726060240246,0.27365097,56985.0,56981.0,0.0294]
[1726060240493,0.27365097,56990.0,56981.0,0.08758854]
[1726060240733,0.17953655,56989.0,56982.0,0.0288]
[1726060240976,0.001,56985.0,56984.0,0.0056]
[1726060241241,0.000819,56991.0,56985.0,0.0285]
[1726060241438,0.17675918,56991.0,56985.0,0.1103]
[1726060241643,0.17675918,56991.0,56986.0,0.0598]
[1726060242103,0.17675918,56991.0,56990.0,0.08728854]
[1726060242104,0.000819,56991.0,56990.0,0.08728854]
[1726060242506,0.001819,56991.0,56990.0,0.08728854]
[1726060243376,0.001819,56991.0,56990.0,0.34622872]
[1726060243588,0.001819,56991.0,56990.0,0.44622872]
[1726060243838,0.001819,56991.0,56990.0,0.50350838]
[1726060244045,0.000819,57004.0,57003.0,0.08728854]
[1726060244262,0.000819,57004.0,57003.0,0.17028854]
[1726060244472,0.00993096,57004.0,57003.0,0.17028854]
[1726060244696,0.000819,57004.0,57003.0,0.17028854]
[1726060244913,0.000819,57004.0,57003.0,0.24941739]
[1726060245145,0.000819,57004.0,57003.0,0.23238854]
[1726060245573,0.005819,57004.0,57003.0,0.23238854]
[1726060246901,0.010819,57004.0,57003.0,0.08728854]
[1726060247420,0.0201857,57004.0,57003.0,0.08728854]
[1726060249098,0.0201857,57004.0,57003.0,0.10618739]
[1726060249550,0.010819,57004.0,57003.0,0.10788739]
[1726060250228,0.010819,57004.0,57003.0,0.08898854]
[1726060250229,0.0116614,57004.0,57003.0,0.08898854]
[1726060260648,0.0116614,57004.0,57003.0,0.08728854]
[1726060260868,0.0116614,57004.0,57000.0,0.0285]
[1726060261085,0.27365097,57002.0,57000.0,0.08728854]
[1726060261769,0.00951464,57001.0,56998.0,0.0293]
[1726060262009,0.27365097,56999.0,56992.0,0.0285]
[1726060262235,0.27365097,56993.0,56991.0,0.001636]
[1726060262462,0.17594018,56992.0,56991.0,0.001636]
[1726060262699,0.18536869,56992.0,56991.0,0.001636]
[1726060262922,0.00942851,56992.0,56991.0,0.001636]
[1726060263145,0.00942851,56992.0,56991.0,0.030136]
[1726060263608,0.00942851,56992.0,56991.0,0.031136]
[1726060263837,0.00942851,56992.0,56991.0,0.002636]
[1726060264063,0.18536869,56992.0,56991.0,0.001636]
[1726060264292,0.19636869,56992.0,56991.0,0.002636]
[1726060264728,0.18536869,56992.0,56991.0,0.001636]
[1726060264952,0.01442851,56992.0,56991.0,0.030136]
[1726060265618,0.01842851,56992.0,56991.0,0.001636]
[1726060266755,0.19436869,56992.0,56991.0,0.001636]
[1726060267014,0.27346506,56992.0,56991.0,0.001636]
[1726060267236,0.33896506,56992.0,56991.0,0.001636]
[1726060267686,0.33926506,56992.0,56991.0,0.001636]
[1726060268149,0.33896506,56992.0,56991.0,0.001636]
[1726060268411,0.33536869,56992.0,56991.0,0.001636]
[1726060269080,0.33896506,56992.0,56991.0,0.001636]
[1726060269979,0.33926506,56992.0,56991.0,0.001636]
[1726060270418,0.33896506,56992.0,56991.0,0.001636]
[1726060272182,0.34197652,56992.0,56991.0,0.001636]
[1726060272436,0.27365097,56976.0,56971.0,0.0016557]
[1726060272659,0.0661,56973.0,56972.0,0.52782518]
[1726060272877,0.0661,56973.0,56971.0,0.0016557]
[1726060272878,0.32274018,56973.0,56971.0,0.0016557]
[1726060273111,0.17953655,56972.0,56971.0,0.0016557]
[1726060273337,0.18873927,56972.0,56971.0,0.0016557]
[1726060274496,0.18903927,56972.0,56971.0,0.0016557]
[1726060274734,0.1851429,56972.0,56971.0,0.0016557]
[1726060274969,0.00920272,56972.0,56971.0,0.0301557]
[1726060275447,0.1991429,56972.0,56971.0,0.0026557]
[1726060275683,0.18873927,56972.0,56971.0,0.0016557]
[1726060276158,0.20273927,56972.0,56971.0,0.0016557]
[1726060276375,0.1851429,56972.0,56971.0,0.0016557]
[1726060276600,0.1991429,56972.0,56971.0,0.0016557]
[1726060277290,0.3393429,56972.0,56971.0,0.0016557]
[1726060277516,0.27365097,56965.0,56964.0,0.001638]
[1726060277735,0.52858752,56965.0,56964.0,0.001638]
[1726060277961,0.53779024,56965.0,56964.0,0.001638]
[1726060278183,0.0015,56963.0,56960.0,0.0024981]
[1726060278418,0.17953655,56962.0,56960.0,0.0024981]
[1726060278917,0.00920272,56961.0,56960.0,0.0024981]
[1726060279151,0.1851429,56961.0,56960.0,0.0024981]
[1726060279831,0.00920272,56961.0,56960.0,0.0927981]
[1726060280324,0.27365097,56967.0,56961.0,0.0017]
[1726060280539,0.27365097,56967.0,56965.0,0.0285]
[1726060281683,0.17594018,56966.0,56960.0,0.0024981]
[1726060281914,0.17594018,56966.0,56965.0,0.001]
[1726060282149,0.51109115,56966.0,56960.0,0.0024981]
[1726060282365,0.27365097,56961.0,56960.0,0.0024981]
[1726060282629,0.44959115,56961.0,56960.0,0.0024981]
[1726060282850,0.45289115,56961.0,56960.0,0.0024981]
[1726060283072,0.45259115,56961.0,56960.0,0.0024981]
[1726060283326,0.44989115,56961.0,56960.0,0.0024981]
[1726060283548,0.25525164,56961.0,56960.0,0.0024981]
[1726060283805,0.52890261,56961.0,56960.0,0.0024981]
[1726060284002,0.52839115,56961.0,56960.0,0.0024981]
[1726060284457,0.54239115,56961.0,56960.0,0.0024981]
[1726060285120,0.54239115,56961.0,56960.0,0.0034981]
[1726060285121,0.30165097,56961.0,56960.0,0.0034981]
[1726060285819,0.028,56961.0,56960.0,0.09078664]
[1726060286049,0.028,56961.0,56960.0,0.1084691]
[1726060286266,0.028,56961.0,56960.0,0.09248664]
[1726060286524,0.014,56961.0,56960.0,0.09248664]
[1726060286739,0.027,56961.0,56960.0,0.09248664]
[1726060287386,0.014,56961.0,56960.0,0.09248664]
[1726060287601,0.27365097,56973.0,56970.0,0.0285]
[1726060288046,0.27365097,56973.0,56968.0,0.0017]
[1726060288047,0.27365097,56983.0,56971.0,0.15218854]
[1726060289160,0.27365097,56983.0,56971.0,0.15202215]
[1726060289587,0.27365097,56988.0,56971.0,0.18126568]
[1726060290047,0.014818,56972.0,56971.0,0.18126568]
[1726060290306,0.014818,56972.0,56971.0,0.17775539]
[1726060290519,0.000818,56972.0,56971.0,0.17775539]
[1726060290954,0.001818,56972.0,56971.0,0.15923214]
[1726060291175,0.001818,56972.0,56971.0,0.15572215]
[1726060291390,0.006818,56972.0,56971.0,0.15372215]
[1726060291830,0.000818,56972.0,56971.0,0.15372215]
[1726060292046,0.001818,56972.0,56971.0,0.24763214]
[1726060292267,0.001818,56972.0,56971.0,0.26888536]
[1726060292716,0.001818,56972.0,56971.0,0.44482554]
[1726060292969,0.002818,56972.0,56971.0,0.56882554]
[1726060293414,0.002818,56972.0,56971.0,2.06882554]
[1726060293643,0.002818,56972.0,56971.0,2.09882554]
[1726060293894,0.002818,56972.0,56971.0,2.11048785]
[1726060294120,0.002818,56972.0,56971.0,2.11248785]
[1726060294351,0.0024981,57000.0,56971.0,2.11248785]
[1726060294352,0.0024981,57000.0,56997.0,0.03003361]
[1726060294799,0.0024981,57000.0,56999.0,0.02833361]
[1726060295027,0.0024981,57000.0,56999.0,0.2682709]
[1726060295265,0.0024981,57000.0,56999.0,0.4083709]
[1726060295501,0.0024981,57000.0,56999.0,0.5613709]
[1726060296216,0.0024981,57011.0,57010.0,0.08882215]
[1726060296441,0.0024981,57011.0,57010.0,0.40954455]
[1726060296686,0.0024981,57011.0,57010.0,0.50954455]
[1726060298261,0.0024981,57011.0,57010.0,0.24882215]
[1726060299412,0.0034981,57011.0,57010.0,0.25982215]
[1726060299670,0.0034981,57011.0,57010.0,0.27082215]
[1726060299890,0.0024981,57011.0,57010.0,0.25982215]
[1726060300109,0.0024981,57011.0,57010.0,0.24882215]
[1726060300326,0.0034981,57011.0,57010.0,0.27082215]
[1726060301472,0.0034981,57011.0,57010.0,0.30561437]
[1726060303427,0.0034981,57011.0,57010.0,0.48155455]
[1726060304663,0.0034981,57011.0,57010.0,0.86370552]
[1726060304887,0.0024981,57023.0,57020.0,0.22782215]
[1726060305108,0.0024981,57023.0,57020.0,2.06241603]
[1726060305333,0.0024981,57023.0,57020.0,2.08341603]
[1726060305559,0.0024981,57023.0,57020.0,0.25282215]
[1726060305771,0.27614907,57023.0,57020.0,0.18882215]
[1726060306219,0.27614907,57023.0,57012.0,0.081]
[1726060306220,0.00871391,57021.0,57017.0,0.02833361]
[1726060306440,0.00871391,57021.0,57016.0,0.0293]
[1726060306650,0.27365097,57018.0,57016.0,0.0293]
[1726060306867,0.27365097,57018.0,57015.0,0.0293]
[1726060307093,0.08949491,57017.0,57016.0,0.02833361]
[1726060307335,0.00789491,57017.0,57016.0,0.08712215]
[1726060307775,0.000819,57021.0,57017.0,0.0017]
[1726060308016,0.000819,57021.0,57016.0,0.08882215]
[1726060308225,0.000819,57021.0,57020.0,0.02833361]
[1726060309137,0.000819,57021.0,57014.0,0.0293]
[1726060309411,0.000819,57021.0,57016.0,0.02833361]
[1726060309412,0.27365097,57018.0,57016.0,0.02833361]
[1726060309642,0.27365097,57018.0,57017.0,0.0293]
[1726060309862,0.003,57018.0,57017.0,0.0293]
[1726060310088,0.003,57018.0,57016.0,0.08712215]
[1726060310313,0.000819,57021.0,57016.0,0.08712215]
[1726060310533,0.003819,57021.0,57018.0,0.0293]
[1726060310995,0.003819,57021.0,57020.0,0.02833361]
[1726060311203,0.000819,57021.0,57020.0,0.02833361]
[1726060312618,0.000819,57021.0,57020.0,0.03759655]
[1726060312838,0.000819,57021.0,57020.0,0.10159212]
[1726060313276,0.003819,57021.0,57020.0,0.10159212]
[1726060313510,0.003819,57021.0,57020.0,0.19232918]
[1726060313727,0.003819,57021.0,57020.0,0.18882215]
[1726060313728,0.000819,57021.0,57020.0,0.18882215]
[1726060314164,0.000819,57021.0,57020.0,0.19082215]
[1726060314412,0.000819,57021.0,57020.0,0.18982215]
[1726060314627,0.000819,57021.0,57020.0,0.08882215]
[1726060315368,0.000819,57021.0,57020.0,0.12173437]
[1726060315594,0.000819,57021.0,57020.0,0.30118151]
[1726060315806,0.000819,57021.0,57020.0,0.39767455]
[1726060317107,0.000819,57021.0,57020.0,0.43167455]
[1726060317329,0.000819,57021.0,57020.0,0.60697455]
[1726060317789,0.0024981,57023.0,57022.0,0.26412215]
[1726060317998,0.0024981,57023.0,57022.0,0.71273799]
[1726060318210,0.0024981,57023.0,57022.0,0.68623188]
[1726060318421,0.0024981,57023.0,57022.0,0.51006233]
[1726060319485,0.0024981,57023.0,57022.0,0.33412215]
[1726060319696,0.0024981,57023.0,57022.0,0.25512215]
[1726060320377,0.0024981,57023.0,57022.0,0.44306233]
[1726060320588,0.0024981,57023.0,57022.0,0.49401047]
[1726060321023,0.0024981,57023.0,57022.0,0.09912215]
[1726060321497,0.0024981,57023.0,57022.0,0.11112215]
[1726060323701,0.0024981,57023.0,57022.0,0.05233361]
[1726060324146,0.0024981,57023.0,57022.0,0.024]
[1726060324606,0.0024981,57023.0,57022.0,0.012]
[1726060324829,0.0024981,57023.0,57018.0,0.0293]
[1726060325047,0.27365097,57019.0,57018.0,0.0293]
[1726060325488,0.27365097,57019.0,57016.0,0.05782215]
[1726060325489,0.27365097,57019.0,57016.0,0.02833361]
[1726060325491,0.27365097,57019.0,57011.0,0.001636]
[1726060325492,0.44959115,57019.0,57011.0,0.001636]
[1726060325724,0.27365097,57014.0,57011.0,0.001636]
[1726060325943,0.25533655,57013.0,57011.0,0.001636]
[1726060326438,0.24229737,57012.0,56999.0,0.02833361]
[1726060326687,0.24229737,57012.0,56994.0,0.05878854]
[1726060326688,0.27365097,57004.0,56994.0,0.02833361]
[1726060326910,0.0007,57010.0,56994.0,0.02833361]
[1726060326911,0.27365097,56995.0,56994.0,0.02833361]
[1726060328669,0.27365097,56995.0,56994.0,0.03033361]
[1726060329083,0.27365097,56995.0,56994.0,0.03203361]
[1726060329301,0.27365097,56995.0,56994.0,0.03033361]
[1726060331796,0.31864018,57003.0,56994.0,0.03033361]
[1726060331797,0.27365097,57000.0,56994.0,0.03384267]
[1726060332032,0.05215173,57016.0,57013.0,0.02833361]
[1726060332033,0.0772,57016.0,57013.0,0.02833361]
[1726060332988,0.0772,57016.0,57013.0,0.03003361]
[1726060333957,0.0772,57016.0,57015.0,0.0017]
[1726060334202,0.27365097,57017.0,57015.0,0.0017]
[1726060334455,0.35235097,57022.0,57020.0,0.02833361]
[1726060336257,0.35435097,57022.0,57020.0,0.02933361]
[1726060337820,0.35435097,57022.0,57020.0,0.03033361]
[1726060338037,0.17594018,57021.0,57020.0,0.002]
[1726060338726,0.35435097,57022.0,57020.0,0.002]
[1726060339156,0.35235097,57022.0,57018.0,0.02833361]
[1726060339373,0.003,57021.0,57020.0,0.002]
[1726060340019,0.35235097,57022.0,57020.0,0.001]
[1726060340266,0.35535097,57022.0,57020.0,0.002]
[1726060340945,0.35535097,57022.0,57020.0,0.001]
[1726060341423,0.35535097,57022.0,57020.0,0.002]
[1726060342314,0.35235097,57022.0,57020.0,0.001]
[1726060342804,0.003,57021.0,57020.0,0.002]
[1726060343323,0.0033161,57023.0,57020.0,0.02933361]
[1726060343573,0.003,57022.0,57020.0,0.08912215]
[1726060344264,0.003,57022.0,57020.0,0.08812215]
[1726060344587,0.003,57022.0,57021.0,0.26656923]
[1726060344801,0.0033161,57023.0,57022.0,0.05878854]
[1726060345047,0.0033161,57023.0,57022.0,0.45546866]
[1726060345294,0.0033161,57023.0,57022.0,0.70793821]
[1726060345555,0.0033161,57023.0,57022.0,1.01328918]
[1726060345805,0.0033161,57023.0,57022.0,1.01528918]
[1726060346067,0.0033161,57023.0,57022.0,2.51528918]
[1726060346560,0.0029847,57032.0,57031.0,0.23572215]
[1726060346793,0.0029847,57032.0,57031.0,0.56474022]
[1726060347991,0.0029847,57032.0,57031.0,0.56674022]
[1726060348935,0.0029847,57032.0,57031.0,0.56874022]
[1726060349684,0.0029847,57032.0,57031.0,0.65874022]
[1726060349930,0.0029847,57032.0,57031.0,0.67035159]
[1726060350184,0.0029847,57032.0,57031.0,2.16684592]
[1726060350667,0.0029847,57032.0,57031.0,2.16484592]
[1726060350903,0.0029847,57032.0,57031.0,2.17984592]
[1726060351192,0.0029847,57032.0,57031.0,2.17784592]
[1726060351427,0.000818,57042.0,57040.0,0.58977312]
[1726060351673,0.000818,57042.0,57040.0,0.94969061]
[1726060352154,0.000818,57042.0,57040.0,0.94769061]
[1726060352394,0.000818,57042.0,57040.0,0.56103964]
[1726060352624,0.000818,57042.0,57040.0,0.48533964]
[1726060354015,0.000818,57042.0,57040.0,0.50833964]
[1726060354470,0.000818,57042.0,57040.0,0.51033964]
[1726060354719,0.000818,57042.0,57040.0,0.54033964]
[1726060354934,0.000818,57042.0,57040.0,0.55433964]
[1726060355369,0.000818,57042.0,57040.0,0.53833964]
[1726060355592,0.000818,57042.0,57040.0,0.52233964]
[1726060355828,0.000818,57042.0,57040.0,0.55233964]
[1726060357690,0.000818,57042.0,57040.0,2.05233964]
[1726060357913,0.000818,57042.0,57040.0,0.52233964]
[1726060358561,0.000818,57042.0,57040.0,0.53433964]
[1726060359017,0.000818,57042.0,57040.0,0.52233964]
[1726060359232,0.000818,57042.0,57040.0,0.44036233]
[1726060359450,0.000818,57042.0,57040.0,0.45436233]
[1726060359664,0.000818,57042.0,57040.0,0.48436233]
[1726060359908,0.000818,57042.0,57040.0,0.45436233]
[1726060360133,0.000818,57042.0,57040.0,0.51098856]
[1726060360355,0.000818,57042.0,57040.0,0.54098856]
[1726060360577,0.000818,57042.0,57040.0,0.56398856]
[1726060360797,0.000818,57042.0,57040.0,0.71603983]
[1726060361011,0.000818,57042.0,57040.0,0.71803983]
[1726060361241,0.000818,57042.0,57040.0,0.61752583]
[1726060361470,0.000818,57042.0,57040.0,2.20781667]
[1726060361687,0.000818,57042.0,57040.0,2.19381667]
[1726060361915,0.000818,57042.0,57040.0,2.20781667]
[1726060362131,0.000818,57042.0,57040.0,2.20083667]
[1726060362346,0.000818,57042.0,57040.0,2.21483667]
[1726060362588,0.000818,57042.0,57040.0,2.20083667]
[1726060362813,0.000818,57042.0,57040.0,0.57183667]
[1726060363027,0.000818,57042.0,57040.0,0.53619044]
[1726060363933,0.000818,57042.0,57040.0,0.56619044]
[1726060364149,0.000818,57042.0,57040.0,0.57321144]
[1726060364393,0.000818,57042.0,57040.0,0.47521144]
[1726060364613,0.000818,57042.0,57040.0,0.68026331]
[1726060365308,0.000818,57042.0,57040.0,0.65226331]
[1726060365729,0.000818,57042.0,57040.0,0.66726331]
[1726060365958,0.000818,57042.0,57040.0,0.55266331]
[1726060366210,0.000818,57042.0,57040.0,0.55064231]
[1726060366433,0.000818,57042.0,57040.0,0.55766431]
[1726060366631,0.000818,57042.0,57040.0,0.55666431]
[1726060366879,0.000818,57042.0,57040.0,0.57066431]
[1726060367103,0.000818,57042.0,57040.0,0.51466431]
[1726060367313,0.000818,57042.0,57040.0,0.53766431]
[1726060368243,0.000818,57042.0,57040.0,0.08712215]
[1726060368682,0.000818,57042.0,57040.0,0.10012215]
[1726060368903,0.079919,57041.0,57040.0,0.024]
[1726060369145,0.079919,57041.0,57040.0,0.011]
[1726060369146,0.143419,57041.0,57040.0,0.011]
[1726060369360,0.146419,57041.0,57040.0,0.0303]
[1726060369582,0.146419,57041.0,57040.0,0.0313]
[1726060369798,0.143419,57041.0,57040.0,0.0303]
[1726060370033,0.143419,57041.0,57040.0,0.0313]
[1726060370307,0.143419,57041.0,57040.0,0.0303]
[1726060370308,0.146419,57041.0,57040.0,0.0303]
[1726060370517,0.143419,57041.0,57040.0,0.05863361]
[1726060370946,0.143419,57041.0,57040.0,0.08760768]
[1726060371467,0.000819,57041.0,57040.0,0.08760768]
[1726060372028,0.002819,57041.0,57040.0,0.08860768]
[1726060372236,0.000819,57041.0,57040.0,0.08760768]
[1726060372454,0.002819,57041.0,57040.0,0.08760768]
[1726060372919,0.003819,57041.0,57040.0,0.08860768]
[1726060373136,0.003819,57041.0,57040.0,0.09746845]
[1726060373345,0.002819,57041.0,57040.0,0.09646845]
[1726060373560,0.002819,57041.0,57040.0,0.09739656]
[1726060373772,0.003819,57041.0,57040.0,0.10003256]
[1726060374910,0.003819,57041.0,57040.0,0.27597274]
[1726060375375,0.003819,57041.0,57040.0,0.37597274]
[1726060375802,0.002819,57041.0,57040.0,0.37497274]
[1726060376036,0.000819,57041.0,57040.0,0.37397274]
[1726060376273,0.000819,57041.0,57040.0,0.36511197]
[1726060376555,0.001819,57041.0,57040.0,0.36511197]
[1726060376747,0.000819,57041.0,57040.0,0.36511197]
[1726060376990,0.000819,57041.0,57040.0,0.36811197]
[1726060377445,0.000819,57041.0,57040.0,0.37111197]
[1726060378234,0.000819,57041.0,57040.0,0.19517179]
[1726060378495,0.084019,57041.0,57040.0,0.09517179]
[1726060379978,0.000819,57041.0,57040.0,0.09517179]
[1726060380667,0.000819,57041.0,57040.0,0.28413495]
[1726060380902,0.000819,57041.0,57040.0,0.44505731]
[1726060381140,0.000819,57041.0,57040.0,1.94480052]
[1726060382198,0.000819,57041.0,57040.0,2.00909657]
[1726060382724,0.000819,57041.0,57040.0,2.14689657]
[1726060383006,0.000819,57041.0,57040.0,2.14889657]
[1726060383231,0.000819,57041.0,57040.0,2.08039077]
[1726060383480,0.000819,57041.0,57040.0,2.04087359]
[1726060383736,0.000819,57041.0,57040.0,2.04987359]
[1726060384206,0.000819,57041.0,57040.0,0.43777754]
[1726060384449,0.000819,57041.0,57040.0,0.46777754]
[1726060384705,0.000819,57041.0,57040.0,2.02168695]
[1726060385176,0.000819,57041.0,57040.0,2.03568695]
[1726060385396,0.000819,57041.0,57040.0,2.00968695]
[1726060385636,0.000819,57041.0,57040.0,2.04668695]
[1726060385849,0.000819,57041.0,57040.0,2.06068695]
[1726060386072,0.000819,57041.0,57040.0,2.04668695]
[1726060386509,0.000819,57041.0,57040.0,2.06068695]
[1726060389947,0.000819,57041.0,57040.0,2.06268695]
[1726060390179,0.000819,57041.0,57040.0,2.47883792]
[1726060392050,0.000819,57041.0,57040.0,2.46483792]
[1726060392683,0.000819,57041.0,57040.0,2.45083792]
[1726060393271,0.000819,57041.0,57040.0,2.18218695]
[1726060393690,0.000819,57041.0,57040.0,2.18920795]
[1726060394118,0.000819,57041.0,57040.0,1.78559854]
[1726060394383,0.000819,57041.0,57040.0,0.10263736]
[1726060395899,0.000819,57041.0,57040.0,0.28057754]
[1726060396363,0.000819,57041.0,57040.0,0.26457754]
[1726060396616,0.002819,57041.0,57040.0,0.36457754]
[1726060396867,0.001819,57041.0,57040.0,0.40654087]
[1726060397083,0.000819,57041.0,57040.0,0.40454087]
[1726060397308,0.001819,57041.0,57040.0,0.40454087]
[1726060397527,0.000819,57041.0,57040.0,0.40454087]
[1726060397758,0.000819,57041.0,57040.0,0.36457754]
[1726060397977,0.079519,57041.0,57040.0,0.36457754]
[1726060398207,0.059519,57041.0,57040.0,0.36457754]
[1726060398422,0.123119,57041.0,57040.0,0.18863736]
[1726060398647,0.123119,57041.0,57040.0,0.08863736]
[1726060398875,0.123937,57041.0,57040.0,0.27344128]
[1726060399087,0.003818,57041.0,57040.0,0.27344128]
[1726060399299,0.003818,57041.0,57040.0,0.37344128]
[1726060399508,0.002818,57041.0,57040.0,0.37204128]
[1726060399739,0.003818,57041.0,57040.0,0.37204128]
[1726060399945,0.001818,57041.0,57040.0,0.37204128]
[1726060400150,0.001818,57041.0,57040.0,0.38504128]
[1726060400151,0.000818,57041.0,57040.0,0.38504128]
[1726060400358,0.000818,57041.0,57040.0,0.38804128]
[1726060400764,0.000818,57041.0,57040.0,0.37204128]
[1726060400974,0.000818,57041.0,57040.0,0.3442421]
[1726060401225,0.083318,57041.0,57040.0,0.37204128]
[1726060401645,0.083318,57041.0,57040.0,0.18723736]
[1726060402268,0.145118,57041.0,57040.0,0.18723736]
[1726060402914,0.146118,57041.0,57040.0,0.08723736]
[1726060403129,0.147118,57041.0,57040.0,0.08723736]
[1726060403344,0.146118,57041.0,57040.0,0.08723736]
[1726060403785,0.145118,57041.0,57040.0,0.08723736]
[1726060404011,0.145118,57041.0,57040.0,0.006636]
[1726060404233,0.145118,57041.0,57040.0,0.015636]
[1726060404456,0.145118,57041.0,57040.0,0.03443518]
[1726060404684,0.000818,57041.0,57040.0,0.26724943]
[1726060404946,0.000818,57041.0,57040.0,0.26224943]
[1726060405421,0.000818,57041.0,57040.0,0.26317754]
[1726060405674,0.000818,57041.0,57040.0,0.28949529]
[1726060405911,0.000818,57041.0,57040.0,0.39549529]
[1726060406352,0.000818,57041.0,57040.0,0.40115753]
[1726060406571,0.000818,57041.0,57040.0,0.36317754]
[1726060407005,0.001818,57041.0,57040.0,0.36317754]
[1726060407738,0.002818,57041.0,57040.0,0.36317754]
[1726060407971,0.001818,57041.0,57040.0,0.18723736]
[1726060408185,0.002818,57041.0,57040.0,0.08723736]
[1726060408401,0.002818,57041.0,57040.0,0.18723736]
[1726060408856,0.001818,57041.0,57040.0,0.18723736]
[1726060409300,0.000818,57041.0,57040.0,0.18723736]
[1726060409778,0.000818,57041.0,57040.0,0.08723736]
[1726060409955,0.000818,57041.0,57040.0,0.18723736]
[1726060411274,0.000818,57041.0,57040.0,0.08723736]
[1726060411476,0.000818,57041.0,57040.0,0.18723736]
[1726060411684,0.001818,57041.0,57040.0,0.18723736]
[1726060412100,0.000818,57041.0,57040.0,0.18723736]
[1726060412513,0.001818,57041.0,57040.0,0.08823736]
[1726060412727,0.001818,57041.0,57040.0,0.18823736]
[1726060412936,0.002818,57041.0,57040.0,0.18923736]
[1726060413787,0.001818,57041.0,57040.0,0.08823736]
[1726060413987,0.002818,57041.0,57040.0,0.003636]
[1726060414196,0.35796897,57041.0,57040.0,0.03102153]
[1726060414619,0.084318,57041.0,57040.0,0.05974882]
[1726060415083,0.084318,57041.0,57040.0,0.05882071]
[1726060415292,0.35796897,57041.0,57040.0,0.003636]
[1726060415505,0.42306897,57041.0,57040.0,0.003636]
[1726060415719,0.65150769,57041.0,57040.0,0.003636]
[1726060415935,0.99115491,57041.0,57040.0,0.003636]
[1726060416142,0.80109612,57041.0,57040.0,0.003636]
[1726060416371,0.1456,57034.0,57024.0,0.02779918]
[1726060416581,0.27365097,57025.0,57024.0,0.08467325]
[1726060416795,0.35415097,57025.0,57024.0,0.05687407]
[1726060417004,0.41925097,57025.0,57022.0,0.02738553]
[1726060417217,0.41925097,57025.0,57021.0,0.02779918]
[1726060417703,0.41925097,57025.0,57020.0,0.02779918]
[1726060417915,0.1466,57025.0,57024.0,0.001]
[1726060418154,0.42025097,57025.0,57024.0,0.001]
[1726060418612,0.59619115,57025.0,57024.0,0.001]
[1726060419314,0.59939197,57025.0,57024.0,0.001]
[1726060419546,0.59939197,57025.0,57005.0,0.05687407]
[1726060419547,0.1435,57012.0,57006.0,0.08717135]
[1726060419792,0.27365097,57013.0,57012.0,0.08467325]
[1726060420052,0.014818,57041.0,57040.0,0.05728772]
[1726060420341,0.014818,57041.0,57040.0,0.08560136]
[1726060420549,0.014818,57041.0,57040.0,0.02779918]
[1726060420762,0.28846897,57041.0,57040.0,0.02779918]
[1726060421185,0.28846897,57041.0,57040.0,0.08467325]
[1726060421457,0.28846897,57041.0,57040.0,0.02779918]
[1726060421664,0.27546897,57041.0,57040.0,0.08467325]
[1726060421872,0.27446897,57041.0,57040.0,0.08467325]
[1726060422090,0.27446897,57041.0,57040.0,0.02779918]
[1726060422299,0.27446897,57041.0,57040.0,0.08467325]
[1726060422738,0.27446897,57041.0,57040.0,0.08630925]
[1726060423183,0.31008767,57041.0,57040.0,0.02943518]